fUST/lending_fUST_20250312
["ID","MTS","AMOUNT","RATE_DAILY","PERIOD"]
[355929791,1741716753284,-385.94186567,0.00025479,2]
[355929792,1741716753295,-9446.84,0.00025479,2]
[355929793,1741716753306,-2814.21,0.00025479,2]
[355929794,1741716753316,-3691.0,0.00025479,2]
[355929795,1741716753327,-1202.86,0.00025479,2]
[355929796,1741716753338,-587.88,0.00025479,2]
[355929797,1741716753351,-500.0,0.00025479,2]
[355929798,1741716753361,-869.52,0.00025479,2]
[355929799,1741716753371,-3579.07,0.00025479,2]
[355929800,1741716753382,-299174.99,0.00025479,2]
[355929801,1741716753392,-2945.67,0.00025479,2]
[355929802,1741716753402,-880.17,0.00025479,2]
[355929803,1741716753412,-500.0,0.00025479,2]
[355929804,1741716753422,-2983.87,0.00025479,2]
[355929805,1741716753433,-11349.89,0.00025479,2]
[355929806,1741716753443,-500.0,0.00025479,2]
[355929807,1741716753453,-247.02028132,0.00025479,2]
[355929808,1741716753463,-811.32,0.00025479,2]
[355929809,1741716753473,-500.0,0.00025479,2]
[355929810,1741716753483,-6411.78,0.00025479,2]
[355929811,1741716753494,-1407.74,0.00025479,2]
[355929812,1741716753504,-500.0,0.00025479,2]
[355929813,1741716753515,-500.0,0.00025479,2]
[355929814,1741716753526,-2234.33,0.00025479,2]
[355929815,1741716753537,-1914.64,0.00025479,2]
[355929816,1741716753548,-516.47,0.00025479,2]
[355929817,1741716753559,-1299.12,0.00025479,2]
[355929818,1741716753568,-2072.12,0.00025479,2]
[355929819,1741716753578,-834.53,0.00025479,2]
[355929820,1741716753587,-3763.62,0.00025479,2]
[355929821,1741716753601,-551.18,0.00025479,2]
[355929822,1741716753612,-3522.52,0.00025479,2]
[355929823,1741716753622,-500.0,0.00025479,2]
[355929824,1741716753632,-658.55,0.00025479,2]
[355929825,1741716753642,-560.70638357,0.00025479,2]
[355929826,1741716753653,-500.0,0.00025479,2]
[355929827,1741716753663,-1515.05,0.00025479,2]
[355929828,1741716753674,-583.5,0.00025479,2]
[355929829,1741716753686,-5959.85187188,0.00025479,2]
[355929830,1741716754356,-7734.66812812,0.00025479,2]
[355929831,1741716754368,-2033.78,0.00025479,2]
[355929832,1741716754379,-2419.19,0.00025479,2]
[355929833,1741716754390,-1260.46,0.00025479,2]
[355929834,1741716754401,-1096.01,0.00025479,7]
[355929835,1741716754413,-947.72,0.00025479,2]
[355929836,1741716754425,-567.06,0.00025479,2]
[355929837,1741716754436,-967.47,0.00025479,2]
[355929838,1741716754450,-1213.75,0.00025479,2]
[355929839,1741716754461,-2759.01,0.00025479,2]
[355929840,1741716754474,-1574.32,0.00025479,2]
[355929841,1741716754486,-623.67089982,0.00025479,2]
[355929842,1741716754498,-1492.0,0.00025479,2]
[355929843,1741716754509,-2494.97,0.00025479,2]
[355929844,1741716754519,-500.0,0.00025479,2]
[355929845,1741716754530,-10869.8,0.00025479,2]
[355929846,1741716754541,-724.88,0.00025479,2]
[355929847,1741716754553,-547.20015439,0.00025479,2]
[355929848,1741716754565,-500.0,0.00025479,2]
[355929849,1741716754576,-500.0,0.00025479,2]
[355929850,1741716754587,-537.03,0.00025479,2]
[355929851,1741716754598,-751.32,0.00025479,2]
[355929852,1741716754610,-1067.93,0.00025479,2]
[355929853,1741716754622,-725.1,0.00025479,2]
[355929854,1741716754634,-5830.62,0.00025479,2]
[355929855,1741716754645,-500.0,0.00025479,2]
[355929856,1741716754656,-13663.82,0.00025479,2]
[355929857,1741716754666,-8586.74,0.00025479,2]
[355929858,1741716754677,-500.0,0.00025479,2]
[355929859,1741716754687,-500.0,0.00025479,2]
[355929860,1741716754698,-1052.85,0.00025479,2]
[355929861,1741716754709,-710.74,0.00025479,2]
[355929862,1741716754721,-1490.39,0.00025479,2]
[355929863,1741716754731,-562.29,0.00025479,2]
[355929864,1741716754742,-2664.47,0.00025479,2]
[355929865,1741716754752,-760.33,0.00025479,2]
[355929866,1741716754763,-9046.62,0.00025479,2]
[355929867,1741716754773,-523.0871593,0.00025479,2]
[355929868,1741716754784,-683.04,0.00025479,2]
[355929869,1741716754794,-1176.59,0.00025479,2]
[355929870,1741716754804,-3131.63,0.00025479,2]
[355929871,1741716754814,-1428.31,0.00025479,2]
[355929872,1741716754826,-1006.02,0.00025479,2]
[355929873,1741716754836,-1287.74,0.00025479,2]
[355929874,1741716754847,-500.0,0.00025479,2]
[355929875,1741716754857,-2049.22,0.00025479,2]
[355929876,1741716754868,-1569.12,0.00025479,2]
[355929877,1741716754878,-1105.59,0.00025479,2]
[355929878,1741716754889,-1986.41,0.00025479,2]
[355929879,1741716754900,-633.94,0.00025479,2]
[355929880,1741716754910,-701.01,0.00025479,2]
[355929881,1741716754921,-1151.53,0.00025479,2]
[355929882,1741716754932,-500.0,0.00025479,2]
[355929883,1741716754942,-1137.57,0.00025479,2]
[355929884,1741716754952,-546.10109554,0.00025479,2]
[355929885,1741716754963,-2208.74,0.00025479,2]
[355929886,1741716754974,-500.0,0.00025479,2]
[355929887,1741716754984,-500.0,0.00025479,2]
[355929888,1741716754995,-500.0,0.00025479,2]
[355929889,1741716755005,-16462.07,0.00025479,2]
[355929890,1741716755016,-678.54634651,0.00025481,2]
[355929891,1741716755027,-23545.82766834,0.000255,4]
[355929892,1741716755037,-23545.82766824,0.000255,4]
[355929893,1741716755047,-23545.82766824,0.000255,4]
[355929894,1741716755060,-23545.82766824,0.000255,4]
[355929895,1741716755070,-21203.55581855,0.000255,4]
[355929896,1741716755084,-2342.27184969,0.000255,4]
[355929897,1741716755095,-13846.05387275,0.000255,4]
[355929898,1741716758909,-622.2,0.00016913,2]
[355929899,1741716758920,-645.2214,0.00016968,2]
[355929900,1741716758930,-669.0945918,0.00017023,2]
[355929901,1741716758939,-693.8510917,0.00017078,2]
[355929902,1741716758949,-719.52358209,0.00017133,2]
[355929903,1741716758959,-746.14595463,0.00017188,2]
[355929904,1741716758969,-773.75335495,0.00017243,2]
[355929905,1741716758978,-802.38222908,0.00017298,2]
[355929906,1741716758989,-832.07037156,0.00017353,2]
[355929907,1741716758999,-514.35670331,0.00021917,2]
[355929908,1741716759009,-2358.29,0.00021917,2]
[355929909,1741716759019,-2358.29,0.00021917,2]
[355929910,1741716759029,-2358.29,0.00021917,2]
[355929911,1741716759039,-2358.29,0.00021917,2]
[355929912,1741716759051,-2358.29,0.00021917,2]
[355929913,1741716759060,-2358.29,0.00021917,2]
[355929914,1741716759070,-2358.29,0.00021917,2]
[355929915,1741716759080,-2358.29,0.00021917,2]
[355929916,1741716759091,-2358.29,0.00021917,2]
[355929917,1741716759104,-2358.29,0.00021917,2]
[355929918,1741716759115,-2358.29,0.00021917,2]
[355929919,1741716759124,-500.0,0.00021917,2]
[355929920,1741716759135,-2358.29,0.00021917,2]
[355929921,1741716759144,-2358.29,0.00021917,2]
[355929922,1741716759154,-2358.41003632,0.00021917,2]
[355929923,1741716759163,-500.0,0.00021917,2]
[355929924,1741716759173,-500.0,0.00022191,2]
[355929925,1741716759183,-500.0,0.00022191,2]
[355929926,1741716759192,-500.0,0.00022465,2]
[355929927,1741716759202,-500.0,0.00022465,2]
[355929928,1741716759213,-520.64192515,0.00022739,2]
[355929929,1741716759224,-500.0,0.00023835,2]
[355929930,1741716759234,-690.32,0.00024109,2]
[355929931,1741716759244,-500.0,0.00024109,2]
[355929932,1741716759254,-690.32,0.00024383,2]
[355929933,1741716759263,-500.0,0.00024383,2]
[355929934,1741716759275,-690.32,0.00024657,2]
[355929935,1741716759285,-500.0,0.00024657,2]
[355929936,1741716759295,-690.32,0.00024931,2]
[355929937,1741716759304,-500.0,0.00024931,2]
[355929938,1741716759313,-160.0,0.00025,7]
[355929939,1741716759323,-779.1,0.00025205,2]
[355929940,1741716759332,-690.32,0.00025205,2]
[355929941,1741716759342,-500.0,0.00025205,2]
[355929942,1741716759355,-779.1,0.00025479,2]
[355929943,1741716759365,-690.32,0.00025479,2]
[355929944,1741716759375,-500.0,0.00025479,2]
[355929945,1741716759384,-9699.77379549,0.000255,4]
[355929946,1741716759393,-23545.82766824,0.000255,4]
[355929947,1741716759403,-18164.90110068,0.000255,4]
[355929948,1741716759533,-500.0,0.00022739,2]
[355929949,1741716759543,-1000.0,0.000255,4]
[355929950,1741716759555,-1857.59039934,0.000255,4]
[355929951,1741716760977,-862.8569753,0.00017408,2]
[355929952,1741716760987,-894.78268339,0.00017463,2]
[355929953,1741716760997,-927.88964268,0.00017518,2]
[355929954,1741716761007,-962.22155946,0.00017573,2]
[355929955,1741716761016,-997.82375716,0.00017628,2]
[355929956,1741716761026,-1034.74323617,0.00017683,2]
[355929957,1741716761037,-1073.02873591,0.00017738,2]
[355929958,1741716761046,-1112.73079914,0.00017793,2]
[355929959,1741716761057,-1153.9018387,0.00017848,2]
[355929960,1741716761068,-751.91077209,0.00017903,2]
[355929961,1741716761080,-1048.08922791,0.00017903,2]
[355929962,1741716761090,-500.0,0.00021917,2]
[355929963,1741716761104,-500.0,0.00021917,2]
[355929964,1741716761114,-500.0,0.00021917,2]
[355929965,1741716761124,-500.0,0.00021917,2]
[355929966,1741716761136,-503.25833787,0.00021917,2]
[355929967,1741716761146,-500.0,0.00021917,2]
[355929968,1741716761156,-341.14992222,0.00021917,2]
[355929969,1741716768645,-228.91346517,0.00016862,2]
[355929970,1741716768672,-271.08653483,0.00016862,2]
[355929971,1741716770855,-1129.4511453,0.00016758,2]
[355929972,1741716773247,-118.5488547,0.00016758,2]
[355929973,1741716773272,-228.91346517,0.00016862,2]
[355929974,1741716773294,-152.53768013,0.0001692,2]
[355929975,1741716778583,-97.46231987,0.0001692,2]
[355929976,1741716778607,-500.0,0.00017551,2]
[355929977,1741716778635,-225.05383396,0.00020356,2]
[355929978,1741716778759,-151.0,0.00020356,2]
[355929979,1741716782994,-150.0,0.00020356,2]
[355929980,1741716832728,-204.017126,0.00016862,2]
[355929981,1741716842147,-180.09194162,0.00016862,2]
[355929982,1741716844128,-192.70729181,0.00016862,2]
[355929983,1741716844157,-107.29270819,0.00016862,2]
[355929984,1741716846064,-392.70729181,0.00016862,2]
[355929985,1741716846093,-96.97162709,0.00016862,2]
[355930908,1741717122913,-174.812356,0.00021479,2]
[355931360,1741717299684,-174.812356,0.00021479,2]
[355931361,1741717422651,-194.827288,0.00021479,2]
[355931362,1741717422676,-105.172712,0.00021497,2]
[355931363,1741717439047,-200.0,0.00021479,2]
[355931365,1741717508654,-1922.31965609,0.00020846,2]
[355931367,1741717534620,-328.18502749,0.00020821,2]
[355931369,1741717566850,-163.818954,0.0002082,2]
[355931372,1741717578555,-150.0,0.00020612,2]
[355931374,1741717586953,-150.0,0.00020406,2]
[355931376,1741717625625,-13.818954,0.00020612,2]
[355931377,1741717625651,-186.181046,0.0002082,2]
[355931380,1741717677080,4460.78199208,0.00016,2]
[355931381,1741717699033,6229.14041467,0.0002,120]
[355931388,1741717718697,830.85395473,0.0002,120]
[355931389,1741717720741,-188.87013029,0.00017,2]
[355931390,1741717721468,19462.39015632,0.00015,4]
[355931394,1741717728558,-150.90626767,0.00017,2]
[355931458,1741717832613,-2.15032361,0.00017,2]
[355931460,1741717832624,-4376.33707758,0.000189,2]
[355931462,1741717832633,-540.49038809,0.00019177,4]
[355931465,1741717832643,-300.0,0.0002082,2]
[355931467,1741717832653,-24571.81497251,0.00020821,2]
[355931469,1741717832665,-8077.68034391,0.00020846,2]
[355931471,1741717832675,-157.48602573,0.00021598,2]
[355931473,1741717832684,-765.093538,0.00021698,2]
[355931475,1741717832694,-765.093538,0.00021698,2]
[355931477,1741717832703,-151.0,0.00021698,2]
[355931478,1741717832713,-151.0,0.00021698,2]
[355931480,1741717832723,-151.0,0.00021698,2]
[355931482,1741717832734,-170.0,0.00021698,2]
[355931484,1741717832743,-13661.15876346,0.000219,2]
[355931486,1741717832753,-600.0,0.00021904,2]
[355931488,1741717832762,-500.0,0.00021914,2]
[355931490,1741717832771,-500.0,0.00021914,2]
[355931492,1741717832780,-500.0,0.00021914,2]
[355931493,1741717832790,-500.0,0.00021914,2]
[355931495,1741717832799,-500.0,0.00021914,2]
[355931497,1741717832809,-500.0,0.00021914,2]
[355931499,1741717832818,-500.0,0.00021914,2]
[355931501,1741717832827,-500.0,0.00021914,2]
[355931503,1741717832836,-333.36056336,0.00021914,2]
[355931505,1741717832845,-500.0,0.00021914,2]
[355931507,1741717832854,-500.0,0.00021914,2]
[355931509,1741717832864,-500.0,0.00021914,2]
[355931511,1741717832874,-500.0,0.00021914,2]
[355931512,1741717832883,-500.0,0.00021914,2]
[355931514,1741717832892,-500.0,0.00021914,2]
[355931516,1741717832901,-500.0,0.00021914,2]
[355931518,1741717832913,-500.0,0.00021914,2]
[355931519,1741717832922,-500.0,0.00021914,2]
[355931521,1741717832931,-500.0,0.00021914,2]
[355931522,1741717832940,-500.0,0.00021914,2]
[355931523,1741717832950,-500.0,0.00021914,2]
[355931524,1741717832960,-500.0,0.00021914,2]
[355931526,1741717832969,-500.0,0.00021914,2]
[355931528,1741717832983,-500.0,0.00021914,2]
[355931530,1741717832993,-500.0,0.00021914,2]
[355931532,1741717833003,-500.0,0.00021914,2]
[355931535,1741717833013,-500.0,0.00021914,2]
[355931537,1741717833023,-500.0,0.00021914,2]
[355931539,1741717833032,-500.0,0.00021914,2]
[355931541,1741717833043,-500.0,0.00021914,2]
[355931543,1741717833053,-500.0,0.00021914,2]
[355931545,1741717833063,-250.40633936,0.00021914,2]
[355931547,1741717833073,-157.42230064,0.00021914,2]
[355931549,1741717833083,-500.0,0.00021914,2]
[355931551,1741717833094,-177.59903189,0.00021916,2]
[355931553,1741717833104,-500.0,0.00021916,2]
[355931555,1741717833114,-500.0,0.00021916,2]
[355931557,1741717833124,-602.14875324,0.00021916,2]
[355931559,1741717833134,-500.0,0.00021916,2]
[355931561,1741717833145,-294.27678625,0.00021916,2]
[355931563,1741717833155,-171.50412726,0.00021916,2]
[355931565,1741717833166,-404.65709985,0.00021916,2]
[355931567,1741717833176,-237.13894706,0.00021916,2]
[355931569,1741717833186,-765.093538,0.00021917,2]
[355931571,1741717833196,-765.093538,0.00021917,2]
[355931573,1741717833206,-765.093538,0.00021917,2]
[355931575,1741717833215,-765.093538,0.00021917,2]
[355931577,1741717833225,-765.093538,0.00021917,2]
[355931579,1741717833235,-765.093538,0.00021917,2]
[355931581,1741717833244,-765.093538,0.00021917,2]
[355931583,1741717833255,-765.093538,0.00021917,2]
[355931585,1741717833265,-765.093538,0.00021917,2]
[355931588,1741717833276,-765.093538,0.00021917,2]
[355931590,1741717833286,-765.093538,0.00021917,2]
[355931592,1741717833296,-765.093538,0.00021917,2]
[355931594,1741717833305,-765.093538,0.00021917,2]
[355931596,1741717833316,-765.093538,0.00021917,2]
[355931598,1741717833326,-765.093538,0.00021917,2]
[355931600,1741717833335,-765.093538,0.00021917,2]
[355931602,1741717833347,-765.093538,0.00021917,2]
[355931604,1741717833356,-765.093536,0.00021917,2]
[355931606,1741717833366,-151.779412,0.00021917,2]
[355931608,1741717833376,-500.0,0.00021917,2]
[355931610,1741717833386,-151.0,0.00021917,2]
[355931612,1741717833396,-151.0,0.00021917,2]
[355931614,1741717833406,-153.984683,0.00021917,2]
[355931616,1741717833419,-500.0,0.00021917,2]
[355931618,1741717833430,-500.0,0.00021917,2]
[355931620,1741717833439,-500.0,0.00021917,2]
[355931622,1741717833450,-500.0,0.00021917,2]
[355931624,1741717833461,-162.68868603,0.00021917,2]
[355931626,1741717833471,-500.0,0.00021917,2]
[355931628,1741717833481,-500.0,0.00021917,2]
[355931631,1741717833493,-500.0,0.00021917,2]
[355931632,1741717833502,-500.0,0.00021917,2]
[355931635,1741717833513,-500.0,0.00021917,2]
[355931637,1741717833523,-500.0,0.00021917,2]
[355931639,1741717833533,-500.0,0.00021917,2]
[355931641,1741717833543,-500.0,0.00021917,2]
[355931643,1741717833552,-519.74621214,0.00021917,2]
[355931645,1741717833563,-151.0,0.00021917,2]
[355931647,1741717833573,-151.0,0.00021917,2]
[355931649,1741717833584,-151.0,0.00021917,2]
[355931651,1741717833595,-151.0,0.00021917,2]
[355931653,1741717833605,-296.617118,0.00021917,2]
[355931655,1741717833615,-500.0,0.00021917,2]
[355931657,1741717833627,-655.26,0.00021917,2]
[355931660,1741717833636,-500.0,0.00021917,2]
[355931662,1741717833646,-500.0,0.00021917,2]
[355931664,1741717833655,-500.0,0.00021917,2]
[355931666,1741717833666,-787.67,0.00021917,2]
[355931668,1741717833676,-500.0,0.00021917,2]
[355931670,1741717833685,-500.0,0.00021917,2]
[355931672,1741717833696,-500.0,0.00021917,2]
[355931674,1741717833705,-500.0,0.00021917,2]
[355931676,1741717833715,-500.0,0.00021917,2]
[355931678,1741717833724,-500.0,0.00021917,2]
[355931698,1741717833975,-500.0,0.00021917,2]
[355931699,1741717834010,-500.0,0.00021917,2]
[355931700,1741717834021,-500.0,0.00021917,2]
[355931701,1741717834032,-500.0,0.00021917,2]
[355931702,1741717834043,-500.0,0.00021917,2]
[355931703,1741717834053,-500.0,0.00021917,2]
[355931704,1741717834064,-533.51,0.00021917,2]
[355931705,1741717834074,-501.78,0.00021917,2]
[355931707,1741717834084,-503.30451997,0.00021917,2]
[355931709,1741717834094,-500.0,0.00021917,2]
[355931711,1741717834103,-269.66487484,0.00021917,2]
[355931713,1741717834113,-522.52348901,0.00021917,2]
[355931715,1741717834123,-500.0,0.00021917,2]
[355931717,1741717834133,-500.0,0.00021917,2]
[355931719,1741717834143,-500.0,0.00021917,2]
[355931721,1741717834153,-500.0,0.00021917,2]
[355931723,1741717834163,-500.0,0.00021917,2]
[355931725,1741717834173,-501.8310386,0.00021917,2]
[355931727,1741717834183,-500.0,0.00021917,2]
[355931729,1741717834194,-583.70494037,0.00021917,2]
[355931731,1741717834204,-500.0,0.00021917,2]
[355931733,1741717834214,-500.0,0.00021917,2]
[355931735,1741717834224,-500.0,0.00021917,2]
[355931738,1741717834234,-500.0,0.00021917,2]
[355931740,1741717834244,-500.0,0.00021917,2]
[355931742,1741717834254,-500.0,0.00021917,2]
[355931744,1741717834264,-500.0,0.00021917,2]
[355931746,1741717834274,-500.0,0.00021917,2]
[355931748,1741717834284,-500.0,0.00021917,2]
[355931750,1741717834294,-370.69996403,0.00021917,2]
[355931752,1741717834304,-500.0,0.00021917,2]
[355931754,1741717834314,-500.0,0.00021917,2]
[355931756,1741717834324,-500.0,0.00021917,2]
[355931758,1741717834334,-500.0,0.00021917,2]
[355931760,1741717834344,-537.42256433,0.00021917,2]
[355931762,1741717834355,-500.0,0.00021917,2]
[355931763,1741717834366,-619.07206918,0.00021917,2]
[355931764,1741717834375,-500.0,0.00021917,2]
[355931765,1741717834385,-500.0,0.00021917,2]
[355931766,1741717834395,-274.70715603,0.00021917,2]
[355931767,1741717834406,-322.32203264,0.00021917,2]
[355931768,1741717834419,-603.3,0.00021917,2]
[355931769,1741717834429,-500.0,0.00021917,2]
[355931770,1741717834439,-500.0,0.00021917,2]
[355931771,1741717834449,-500.0,0.00021917,2]
[355931772,1741717834459,-3237.7,0.00021917,2]
[355931773,1741717834469,-500.0,0.00021917,2]
[355931774,1741717834479,-501.49,0.00021917,2]
[355931775,1741717834489,-500.0,0.00021917,2]
[355931776,1741717834500,-677.26,0.00021917,2]
[355931777,1741717834510,-638.96818033,0.00021917,2]
[355931778,1741717834521,-500.0,0.00021917,2]
[355931779,1741717834530,-500.0,0.00021917,2]
[355931780,1741717834540,-500.0,0.00021917,2]
[355931781,1741717834550,-500.0,0.00021917,2]
[355931782,1741717834560,-500.0,0.00021917,2]
[355931783,1741717834569,-652.38,0.00021917,2]
[355931784,1741717834578,-500.0,0.00021917,2]
[355931785,1741717834589,-405.82856791,0.00021917,2]
[355931786,1741717834598,-500.0,0.00021917,2]
[355931787,1741717834608,-500.0,0.00021917,2]
[355931788,1741717834617,-500.0,0.00021917,2]
[355931789,1741717834628,-500.0,0.00021917,2]
[355931790,1741717834638,-200.0,0.00021917,2]
[355931791,1741717834648,-500.0,0.00021917,2]
[355931792,1741717834657,-500.0,0.00021917,2]
[355931793,1741717834669,-534.95456523,0.00021917,2]
[355931794,1741717834679,-533.48,0.00021917,2]
[355931795,1741717834689,-500.0,0.00021917,2]
[355931796,1741717834700,-500.0,0.00021917,2]
[355931797,1741717834711,-773.94,0.00021917,2]
[355931798,1741717834722,-568.63091671,0.00021917,2]
[355931799,1741717834732,-990.45,0.00021917,2]
[355931800,1741717834742,-500.0,0.00021917,2]
[355931801,1741717834752,-500.0,0.00021917,2]
[355931802,1741717834762,-500.0,0.00021917,2]
[355931803,1741717834771,-500.0,0.00021917,2]
[355931804,1741717834781,-500.0,0.00021917,2]
[355931805,1741717834791,-500.0,0.00021917,2]
[355931806,1741717834801,-500.0,0.00021917,2]
[355931807,1741717834811,-169.75657938,0.00021917,2]
[355931808,1741717834821,-500.0,0.00021917,2]
[355931809,1741717834831,-500.0,0.00021917,2]
[355931810,1741717834844,-397.98277309,0.00021917,2]
[355931811,1741717834855,-500.0,0.00021917,2]
[355931812,1741717834865,-500.0,0.00021917,2]
[355931813,1741717834875,-500.0,0.00021917,2]
[355931814,1741717834886,-500.0,0.00021917,2]
[355931815,1741717834895,-500.0,0.00021917,2]
[355931816,1741717834905,-500.0,0.00021917,2]
[355931817,1741717834916,-500.0,0.00021917,2]
[355931818,1741717834927,-500.0,0.00021917,2]
[355931819,1741717834937,-500.0,0.00021917,2]
[355931820,1741717834947,-500.0,0.00021917,2]
[355931821,1741717834957,-961.58,0.00021917,2]
[355931822,1741717834967,-500.0,0.00021917,2]
[355931823,1741717834977,-500.0,0.00021917,2]
[355931824,1741717834987,-500.0,0.00021917,2]
[355931825,1741717834997,-593.73936366,0.00021917,2]
[355931826,1741717835007,-500.0,0.00021917,2]
[355931827,1741717835017,-645.81,0.00021917,2]
[355931828,1741717835027,-500.0,0.00021917,2]
[355931829,1741717835037,-500.0,0.00021917,2]
[355931830,1741717835047,-9999.0,0.00021917,2]
[355931831,1741717835058,-525.2,0.00021917,2]
[355931832,1741717835069,-500.0,0.00021917,2]
[355931833,1741717835080,-642.95,0.00021917,2]
[355931834,1741717835091,-500.0,0.00021917,2]
[355931835,1741717835102,-500.0,0.00021917,2]
[355931836,1741717835113,-500.0,0.00021917,2]
[355931837,1741717835126,-500.0,0.00021917,2]
[355931838,1741717835137,-500.0,0.00021917,2]
[355931839,1741717835153,-500.0,0.00021917,2]
[355931840,1741717835167,-500.0,0.00021917,2]
[355931841,1741717835180,-500.0,0.00021917,2]
[355931842,1741717835195,-500.0,0.00021917,2]
[355931843,1741717835208,-672.66,0.00021917,2]
[355931844,1741717835220,-655.96,0.00021917,2]
[355931845,1741717835232,-909.23,0.00021917,2]
[355931846,1741717835244,-500.0,0.00021917,2]
[355931847,1741717835255,-500.0,0.00021917,2]
[355931848,1741717835266,-472.35849947,0.00021917,2]
[355931849,1741717835277,-523.97743146,0.00021917,2]
[355931850,1741717835287,-500.0,0.00021917,2]
[355931851,1741717835298,-500.0,0.00021917,2]
[355931852,1741717835309,-500.0,0.00021917,2]
[355931853,1741717835319,-500.0,0.00021917,2]
[355931854,1741717835329,-500.0,0.00021917,2]
[355931855,1741717835339,-500.0,0.00021917,2]
[355931856,1741717835350,-500.0,0.00021917,2]
[355931857,1741717835359,-500.0,0.00021917,2]
[355931858,1741717835371,-500.0,0.00021917,2]
[355931859,1741717835381,-500.0,0.00021917,2]
[355931860,1741717835391,-500.0,0.00021917,2]
[355931861,1741717835401,-735.92,0.00021917,2]
[355931862,1741717835412,-500.0,0.00021917,2]
[355931863,1741717835426,-500.0,0.00021917,2]
[355931864,1741717835437,-500.0,0.00021917,2]
[355931865,1741717835446,-500.0,0.00021917,2]
[355931866,1741717835458,-500.0,0.00021917,2]
[355931867,1741717835468,-920.86,0.00021917,2]
[355931868,1741717835478,-967.21,0.00021917,2]
[355931869,1741717835489,-780.04,0.00021917,2]
[355931870,1741717835499,-1260.65,0.00021917,2]
[355931871,1741717835510,-500.0,0.00021917,2]
[355931872,1741717835520,-500.0,0.00021917,2]
[355931873,1741717835530,-814.92,0.00021917,2]
[355931874,1741717835540,-500.0,0.00021917,2]
[355931875,1741717835551,-664.72,0.00021917,2]
[355931876,1741717835561,-1304.75,0.00021917,2]
[355931877,1741717835571,-174.69709185,0.00021917,2]
[355931878,1741717835581,-500.0,0.00021917,2]
[355931879,1741717835591,-500.0,0.00021917,2]
[355931880,1741717835600,-500.0,0.00021917,2]
[355931881,1741717835610,-500.0,0.00021917,2]
[355931882,1741717835620,-500.0,0.00021917,2]
[355931883,1741717835630,-500.0,0.00021917,2]
[355931884,1741717835639,-500.0,0.00021917,2]
[355931885,1741717835649,-500.0,0.00021917,2]
[355931886,1741717835659,-500.0,0.00021917,2]
[355931887,1741717835674,-500.0,0.00021917,2]
[355931888,1741717835684,-500.0,0.00021917,2]
[355931889,1741717835694,-500.0,0.00021917,2]
[355931890,1741717835704,-500.0,0.00021917,2]
[355931891,1741717835714,-751.73,0.00021917,2]
[355931892,1741717835724,-500.0,0.00021917,2]
[355931893,1741717835733,-500.0,0.00021917,2]
[355931894,1741717835743,-1214.31,0.00021917,2]
[355931895,1741717835753,-500.0,0.00021917,2]
[355931896,1741717835763,-500.0,0.00021917,2]
[355931897,1741717835773,-901.75,0.00021917,2]
[355931898,1741717835783,-500.0,0.00021917,2]
[355931899,1741717835793,-500.0,0.00021917,2]
[355931900,1741717835803,-500.0,0.00021917,2]
[355931901,1741717835814,-500.0,0.00021917,2]